[Event "17th Delhi GM Open 2019-B"]
[Site "Delhi"]
[Date "2019.01.09"]
[Round "3"]
[White "Hage Lasa Nado"]
[Black "Selvamurugan B"]
[Result "1/2-1/2"]
[ECO "C15"]
[WhiteElo "1658"]
[BlackElo "1844"]
[Annotator "NA"]
[PlyCount "44"]
[EventDate "2019.01.09"]
[EventType "swiss"]
[EventCountry "IND"]
[SourceTitle "playchess.com"]
[Source "ChessBase"]
[SourceQuality "1"]
[TimeControl "3600+30"]

{[%evp 8,42,0,0,0,0,0,32767,32767,32767,32767,32767,-1,16,32767,32767,32767,32767,32767,32767,32767,33,32767,32767,32767,41,139,128,133,0,0,0,139,0,0,0,133]} 1. e4 {[%emt 0:00:00]} e6 {[%emt 0:00:00]} 2. d4 {[%emt 0:00:00]} d5 {[%emt 0:00:00]} 3. Nc3 {[%emt 0:00:00]} Bb4 {[%emt 0:00:00]} 4. Qg4 {[%emt 0:00:00]} Nf6 {[%emt 0:00:00]} 5. Qxg7 {[%emt 0:00:00]} Rg8 {[%emt 0:00:00]} 6. Qh6 {[%emt 0:00:00]} Rg6 {[%emt 0:00:00] LiveBook: 22 Games} 7. Qh4 {[%emt 0:00:00] C15: French: 3 Nc3 Bb4: Unusual White 4th moves} (7. Qe3 c5 8. a3 Ba5 9. Nge2 Nc6 10. f3 e5 11. dxc5 d4 12. Qf2 dxc3 13. b4 Bc7 14. Be3 b6 15. Nxc3 {0-1 (31) Catt,P (2416)-Tauber,H (2500) ICCF email 2014}) 7... dxe4 {[%emt 0:00:00]} 8. Bg5 {[%emt 0:00:00]} Qxd4 {[%emt 0:00:00]} 9. Nge2 {[%emt 0:00:00]} Qe5 {[%emt 0:00:00]} 10. Bxf6 {[%emt 0:00:00]} Rxf6 $146 {[%emt 0:00:00]} ({Predecessor:} 10... Qxf6 11. Qxe4 Nc6 12. g3 Bd7 13. Bg2 O-O-O 14. O-O-O Qe5 {1-0 (69) Pedersen,N (2290)-Nilsson,M (2145) Hallsberg 1997}) 11. O-O-O {[%emt 0:00:00]} Bxc3 {[%emt 0:00:00]} 12. Nxc3 {[%emt 0:00:00]} Qf4+ {[%emt 0:00:00]} 13. Qxf4 {[%emt 0:00:00]} Rxf4 {[%emt 0:00:00]} 14. g3 {[%emt 0:00:00]} Rxf2 {[%emt 0:00:00]} 15. Nxe4 {[%emt 0:00:00]} Rf5 {[%emt 0:00:00]} 16. Bh3 {[%emt 0:00:00]} Re5 {[%emt 0:00:37]} (16... Rb5 $1 $14) 17. Nf6+ {[%emt 0:00:00]} Ke7 {[%emt 0:00:00] [#]} 18. Ng8+ {[%emt 0:00:00]} (18. Nd5+ $1 $16 Rxd5 19. Rxd5) 18... Ke8 {[%emt 0:00:10]} 19. Nf6+ {[%emt 0:01:29] Double Attack} Ke7 {[%emt 0:00:00]} 20. Ng8+ {[%emt 0:03:38]} Ke8 {[%emt 0:00:11]} 21. Nf6+ $11 {[%emt 0:05:15]} Ke7 {[%emt 0:00:00]} 22. Ng8+ {[%emt 0:05:20]} Ke8 {[%emt 0:00:14]} 1/2-1/2